bitfinex/quotes_SOLUSD_20251007
["timestamp","ask_amount","ask_price","bid_price","bid_amount"]
[1759819111571,20.8,230.83,230.74,0.71]
[1759819111772,4.3323802,230.82,230.74,0.71]
[1759819112489,15.16333072,230.82,230.75,35.3]
[1759819112678,4.3323802,230.82,230.76,0.71]
[1759819113094,15.16333072,230.82,230.76,0.71]
[1759819113262,4.3323802,230.82,230.76,0.71]
[1759819113462,4.33213697,230.84,230.76,0.71]
[1759819113870,10.82978273,230.85,230.76,0.71]
[1759819114870,10.82978273,230.85,230.77,35.24]
[1759819115982,15.16267382,230.83,230.78,35.18]
[1759819116182,0.69,230.82,230.79,35.16]
[1759819116574,15.16267382,230.83,230.79,35.16]
[1759819116575,20.8,230.8,230.79,35.16]
[1759819116891,21.49,230.8,230.79,35.16]
[1759819117066,21.49,230.8,230.7,2.66964256]
[1759819117266,21.49,230.8,230.71,35.12]
[1759819117474,21.49,230.8,230.72,0.66]
[1759819118077,15.16530178,230.79,230.72,0.66]
[1759819118474,4.33294336,230.79,230.72,0.66]
[1759819118779,15.84333072,230.82,230.72,0.66]
[1759819118983,2.83521058,230.81,230.72,0.66]
[1759819119185,0.68,230.8,230.73,35.1]
[1759819119607,2.83521058,230.81,230.73,35.76]
[1759819119768,36.82523176,230.82,230.73,35.76]
[1759819120499,36.82523176,230.82,230.74,35.08]
[1759819120677,15.16333072,230.82,230.75,0.66]
[1759819121800,15.16333072,230.82,230.74,35.08]
[1759819121984,15.16333072,230.82,230.74,35.74]
[1759819122497,4.3323802,230.82,230.74,35.08]
[1759819122795,4.3323802,230.82,230.75,0.66]
[1759819123991,4.33212368,230.84,230.75,0.66]
[1759819124169,10.82975493,230.85,230.76,4.33350667]
[1759819124373,10.82975493,230.85,230.77,0.66]
[1759819124573,10.82975493,230.85,230.77,35.62]
[1759819124996,10.82975493,230.85,230.77,34.96]
[1759819125207,10.82975493,230.85,230.78,0.66]
[1759819126002,15.16157212,230.85,230.78,0.66]
[1759819126901,2.26075461,230.86,230.78,15.82588424]
[1759819127198,13.16843222,230.91,230.78,15.82588424]
[1759819127199,17.49912906,230.91,230.79,45.31647521]
[1759819127377,0.68,230.9,230.8,0.66]
[1759819128083,4.33106674,230.89,230.81,4.33256791]
[1759819128277,2.94023375,230.94,230.82,0.66]
[1759819128472,23.74023375,230.94,230.83,34.84]
[1759819128797,2.94023375,230.94,230.84,0.66]
[1759819128975,2.26023375,230.94,230.84,0.66]
[1759819129181,15.1561079,230.93,230.84,0.66]
[1759819129691,4.33031654,230.93,230.84,0.66]
[1759819129879,17.28749295,230.93,230.84,0.66]
[1759819130199,0.68,230.98,230.86,20.8]
[1759819130398,4.32956661,230.97,230.87,0.66]
[1759819131108,15.15348313,230.97,230.87,0.66]
[1759819131279,0.68,230.96,230.87,0.66]
[1759819131477,0.68,230.96,230.88,34.74]
[1759819132200,15.1547954,230.95,230.88,34.74]
[1759819132809,15.1547954,230.95,230.89,34.68]
[1759819133013,15.1547954,230.95,230.87,0.66]
[1759819133307,15.1547954,230.95,230.9,34.68]
[1759819133604,0.68,230.94,230.87,0.66]
[1759819133794,0.5,230.93,230.91,34.66]
[1759819134113,21.48,230.92,230.84,0.66]
[1759819134295,15.15742063,230.91,230.85,34.64]
[1759819134498,15.15742063,230.91,230.84,0.66]
[1759819134499,15.15742063,230.91,230.81,34.44]
[1759819134707,0.68,230.9,230.81,34.44]
[1759819135021,0.68,230.9,230.81,33.78]
[1759819135022,20.8,230.88,230.81,33.78]
[1759819135189,0.68,230.87,230.82,34.62]
[1759819135390,0.68,230.86,230.82,34.62]
[1759819135583,20.8,230.88,230.82,34.62]
[1759819135992,20.8,230.88,230.81,33.78]
[1759819136305,4.33144193,230.87,230.83,34.6]
[1759819136686,15.16004677,230.87,230.83,34.6]
[1759819136885,4.33144193,230.87,230.83,34.6]
[1759819137410,15.16004677,230.87,230.83,34.6]
[1759819137585,15.16004677,230.87,230.84,34.54]
[1759819138004,0.68,230.86,230.85,34.54]
[1759819138194,15.16004677,230.87,230.85,34.54]
[1759819138793,4.33144193,230.87,230.85,34.54]
[1759819140308,15.15873359,230.89,230.85,34.54]
[1759819140514,15.83873359,230.89,230.85,34.54]
[1759819140716,0.5,230.88,230.85,34.54]
[1759819141410,0.69,230.87,230.81,33.78]
[1759819141711,0.69,230.87,230.82,34.42]
[1759819142118,0.69,230.86,230.81,33.78]
[1759819142307,15.16136018,230.85,230.82,34.42]
[1759819145022,20.8,230.88,230.82,34.42]
[1759819145317,20.8,230.88,230.83,0.67]
[1759819145701,0.5,230.86,230.82,34.42]
[1759819146195,0.5,230.86,230.83,0.67]
[1759819146516,0.5,230.86,230.82,34.42]
[1759819146825,20.8,230.88,230.82,34.42]
[1759819147417,15.16004677,230.87,230.83,34.26]
[1759819148012,15.16004677,230.87,230.81,33.78]
[1759819148219,15.16004677,230.87,230.84,34.22]
[1759819150725,0.5,230.85,230.84,34.22]
[1759819151730,15.85004677,230.87,230.81,33.78]
[1759819152030,15.85004677,230.87,230.84,34.2]
[1759819152228,0.69,230.86,230.84,34.2]
[1759819152432,15.85004677,230.87,230.84,34.2]
[1759819153136,15.16004677,230.87,230.84,34.2]
[1759819155520,15.85004677,230.87,230.84,34.2]
[1759819155717,0.5,230.85,230.84,34.2]
[1759819157132,10.82860484,230.87,230.84,34.2]
[1759819157428,10.82860484,230.87,230.84,34.87]
[1759819158125,4.33162955,230.86,230.84,34.87]
[1759819158339,10.82860484,230.87,230.84,34.87]
[1759819159060,15.85004677,230.87,230.81,0.67]
[1759819159213,15.85004677,230.87,230.82,33.92]
[1759819159612,15.16004677,230.87,230.82,33.92]
[1759819159807,15.16004677,230.87,230.82,34.59]
[1759819160611,4.33200485,230.84,230.82,34.59]
[1759819161434,4.33200485,230.84,230.82,33.92]
[1759819161624,4.33200485,230.84,230.83,0.67]
[1759819161946,4.33200485,230.84,230.82,33.92]
[1759819162432,6.59247637,230.86,230.83,0.67]
[1759819162641,6.59240346,230.86,230.83,0.67]
[1759819162814,4.33163448,230.86,230.83,0.67]
[1759819163332,5.09992009,230.91,230.83,0.67]
[1759819163333,4.33087916,230.9,230.83,0.67]
[1759819163542,7.17031844,230.9,230.83,0.67]
[1759819163927,17.99751636,230.9,230.83,0.67]
[1759819164128,15.15807708,230.9,230.83,0.67]
[1759819167245,4.33125433,230.88,230.83,0.67]
[1759819167417,2.26048081,230.91,230.83,5.00215691]
[1759819167617,0.69,230.99,230.84,0.67]
[1759819167839,17.99843938,230.96,230.84,0.67]
[1759819168033,2.84425361,230.95,230.85,33.66]
[1759819168243,3.53425361,230.95,230.86,0.67]
[1759819168640,20.8,230.93,230.86,0.67]
[1759819169029,20.8,230.93,230.87,33.66]
[1759819169236,4.33050407,230.92,230.87,33.66]
[1759819169434,7.86340863,230.92,230.88,33.64]
[1759819169748,15.15676424,230.92,230.88,33.64]
[1759819170047,4.33050407,230.92,230.88,33.64]
[1759819170422,5.02050407,230.92,230.89,33.64]
[1759819170621,15.84676424,230.92,230.89,33.64]
[1759819171121,15.15676424,230.92,230.89,33.64]
[1759819171344,10.82626017,230.92,230.84,0.67]
[1759819171648,0.72,230.91,230.85,33.6]
[1759819172436,3.56413599,230.91,230.85,33.6]
[1759819172637,4.33087916,230.9,230.85,33.6]
[1759819172838,4.33087916,230.9,230.86,0.67]
[1759819173015,4.33087916,230.9,230.85,33.6]
[1759819173016,4.33087916,230.9,230.87,0.67]
[1759819175236,10.82626017,230.92,230.88,0.67]
[1759819175644,10.82626017,230.92,230.86,0.67]
[1759819176854,3.5662129,230.91,230.87,33.42]
[1759819177231,0.72,230.9,230.87,33.42]
[1759819177530,2.8462129,230.91,230.87,33.42]
[1759819177747,2.8462129,230.91,230.87,34.08]
[1759819178049,2.8462129,230.91,230.87,33.42]
[1759819178346,3.5662129,230.91,230.87,33.42]
[1759819178847,15.15807708,230.9,230.87,33.42]
[1759819179344,15.15807708,230.9,230.88,33.4]
[1759819180750,0.5,230.89,230.88,33.4]
[1759819181232,0.5,230.89,230.88,34.06]
[1759819181439,2.8492955,230.93,230.88,34.06]
[1759819181629,4.32994154,230.95,230.89,0.66]
[1759819182161,7.17923704,230.95,230.89,0.66]
[1759819182454,4.32994154,230.95,230.89,0.66]
[1759819183130,4.32994154,230.95,230.89,4.99104755]
[1759819183332,17.51219379,230.97,230.9,0.66]
[1759819183935,4.32936576,230.99,230.9,0.66]
[1759819184151,7.17755829,230.99,230.9,0.66]
[1759819184654,31.15693431,230.99,230.9,0.66]
[1759819184856,2.84819253,230.98,230.9,0.66]
[1759819185051,28.30874178,230.99,230.9,0.66]
[1759819185241,29.02874178,230.99,230.9,0.66]
[1759819186230,29.02874178,230.99,230.91,33.22]
[1759819186429,3.5643589,230.98,230.91,33.22]
[1759819186732,0.5,230.97,230.91,33.22]
[1759819187246,0.5,230.97,230.92,0.66]
[1759819187626,4.32975406,230.96,230.92,0.66]
[1759819188147,15.15413923,230.96,230.92,0.66]
[1759819189850,4.32937916,230.98,230.93,0.66]
[1759819190756,4.32937916,230.98,230.91,33.22]
[1759819191054,4.32937916,230.98,230.92,0.66]
[1759819191758,15.15282707,230.98,230.92,0.66]
[1759819192426,4.32937916,230.98,230.92,0.66]
[1759819193129,13.15639668,230.99,230.92,4.99045935]
[1759819193325,4.32881693,231.01,230.93,0.66]
[1759819193753,4.32861585,231.03,230.93,0.66]
[1759819194353,17.07893138,231.03,230.93,0.66]
[1759819194556,4.32861585,231.03,230.93,0.66]
[1759819195257,10.82110548,231.03,230.93,4.9902055]
[1759819195436,4.32806751,231.05,230.93,4.9902055]
[1759819195437,4.32806751,231.05,230.94,0.66]
[1759819195636,5.04806751,231.05,230.95,33.0]
[1759819195941,5.04806751,231.05,230.96,0.66]
[1759819196749,15.8682363,231.05,230.96,0.66]
[1759819197054,15.1482363,231.05,230.96,0.66]
[1759819197256,0.72,231.04,230.96,0.66]
[1759819197560,15.14954767,231.03,230.97,32.98]
[1759819197763,4.32844219,231.03,230.98,0.66]
[1759819197958,4.32819104,231.05,230.98,0.66]
[1759819199856,0.72,231.04,230.95,0.66]
[1759819200059,0.72,231.04,230.96,32.94]
[1759819200243,0.72,231.03,230.96,32.94]
[1759819200565,0.72,231.02,230.97,32.92]
[1759819200736,0.72,231.02,230.92,0.66]
[1759819200737,0.72,231.01,230.92,0.66]
[1759819200931,1.22,231.01,230.93,32.9]
[1759819201241,1.22,231.01,230.92,0.66]
[1759819201242,15.15217107,230.99,230.92,0.66]
[1759819201440,0.7,230.98,230.89,0.72]
[1759819201645,15.15217107,230.99,230.93,32.9]
[1759819202262,0.7,230.98,230.93,32.9]
[1759819202472,0.7,230.97,230.93,32.9]
[1759819202835,0.7,230.96,230.93,32.9]
[1759819203234,4.32994154,230.95,230.93,32.9]
[1759819203743,0.7,230.98,230.9,0.72]
[1759819204266,0.7,230.98,230.91,32.86]
[1759819205040,20.8,230.96,230.88,33.76]
[1759819205236,0.7,230.95,230.89,32.86]
[1759819205435,20.8,230.96,230.89,32.86]
[1759819205436,15.85545162,230.94,230.89,32.86]
[1759819205648,0.7,230.93,230.88,33.76]
[1759819205855,0.7,230.92,230.89,32.82]
[1759819206042,0.7,230.91,230.88,33.76]
[1759819206247,0.7,230.91,230.9,32.82]
[1759819207270,0.7,230.93,230.9,32.82]
[1759819207457,5.03050407,230.92,230.9,32.82]
[1759819208242,4.33050407,230.92,230.9,32.82]
[1759819208746,5.03050407,230.92,230.9,32.82]
[1759819209162,15.15676424,230.92,230.88,33.76]
[1759819209365,0.7,230.91,230.89,32.76]
[1759819209548,4.33087916,230.9,230.89,32.76]
[1759819210059,5.03087916,230.9,230.89,32.76]
[1759819210262,5.03087916,230.9,230.88,33.76]
[1759819210469,4.33087916,230.9,230.89,5.87794324]
[1759819210671,4.33087916,230.9,230.89,32.72]
[1759819210972,5.03087916,230.9,230.89,32.72]
[1759819211175,5.03087916,230.9,230.89,7.13352642]
[1759819211375,18.03900924,230.9,230.89,7.13352642]
[1759819211551,18.53900924,230.9,230.89,7.13352642]
[1759819213350,20.8,230.87,230.79,0.72]
[1759819213547,20.8,230.87,230.71,33.76]
[1759819213548,20.8,230.87,230.77,0.72]
[1759819213749,0.7,230.86,230.78,31.1]
[1759819213955,13.71151519,230.86,230.78,31.1]
[1759819214461,0.7,230.86,230.78,31.82]
[1759819214770,13.01151519,230.85,230.78,31.82]
[1759819215348,37.52204122,230.84,230.78,31.1]
[1759819215549,0.7,230.83,230.78,31.1]
[1759819215769,20.8,230.81,230.78,31.1]
[1759819215971,0.7,230.8,230.72,32.7]
[1759819216178,13.71433746,230.8,230.72,32.7]
[1759819216473,20.8,230.77,230.71,33.76]
[1759819216673,20.8,230.77,230.72,32.7]
[1759819216862,20.8,230.77,230.73,0.72]
[1759819217251,15.16793065,230.75,230.7,2.66964256]
[1759819217458,28.37571049,230.75,230.71,32.7]
[1759819217904,13.01659616,230.74,230.71,32.7]
[1759819218080,20.8,230.72,230.71,32.7]
[1759819219247,25.13425797,230.72,230.71,32.7]
[1759819220956,4.33425797,230.72,230.71,32.7]
[1759819221155,4.33425797,230.72,230.71,33.42]
[1759819221777,4.33407012,230.73,230.71,33.42]
[1759819222271,4.33407012,230.73,230.71,32.7]
[1759819223055,34.00777984,230.75,230.72,0.72]
[1759819223284,4.3338911,230.74,230.71,32.7]
[1759819223662,15.16859682,230.74,230.71,32.7]
[1759819224256,2.96197141,230.73,230.7,2.66964256]
[1759819224560,20.8,230.72,230.71,32.72]
[1759819225054,25.13425797,230.72,230.71,32.72]
[1759819227373,38.15254866,230.72,230.71,32.72]
[1759819227687,4.33425797,230.72,230.71,32.72]
[1759819227982,4.33425797,230.72,230.71,33.44]
[1759819228465,4.33425797,230.72,230.71,32.72]
[1759819228671,4.33425797,230.72,230.71,33.44]
[1759819229491,6.59604224,230.73,230.71,33.44]
[1759819229787,6.59604224,230.73,230.72,0.72]
[1759819229972,6.59604224,230.73,230.71,32.72]
[1759819230174,6.59604224,230.73,230.71,33.44]
[1759819230478,6.59604224,230.73,230.71,32.72]
[1759819232084,6.59604224,230.73,230.71,33.39]
[1759819232784,6.59604224,230.73,230.71,32.72]
[1759819233083,2.26197141,230.73,230.72,0.67]
[1759819233261,6.59604153,230.73,230.72,0.67]
[1759819234265,4.59604153,230.73,230.72,0.67]
[1759819234575,4.33407012,230.73,230.71,32.72]
[1759819235078,4.33407012,230.73,230.7,2.66964256]
[1759819235079,15.16924543,230.73,230.7,2.66964256]
[1759819235386,15.16924543,230.73,230.72,32.7]
[1759819235788,19.50553455,230.73,230.72,32.7]
[1759819236170,20.20553455,230.73,230.72,32.7]
[1759819236370,31.08200976,230.73,230.72,32.7]
[1759819237191,10.87647521,230.71,230.7,2.66964256]
[1759819237382,10.87647521,230.71,230.7,35.36964256]
[1759819237771,23.89646088,230.71,230.7,35.36964256]
[1759819238703,13.01998567,230.71,230.7,35.36964256]
[1759819238999,20.8,230.71,230.7,35.36964256]
[1759819239200,25.13444584,230.71,230.7,35.36964256]
[1759819241775,25.13444584,230.71,230.7,2.66964256]
[1759819241973,25.13444584,230.71,230.7,35.36964256]
[1759819244106,25.13444584,230.71,230.7,36.07964256]
[1759819244677,6.59659121,230.73,230.7,36.07964256]
[1759819244882,20.8,230.71,230.7,35.36964256]
[1759819245397,20.8,230.71,230.7,36.07964256]
[1759819246395,20.8,230.71,230.7,2.66964256]
[1759819246670,41.72092105,230.71,230.7,35.36964256]
[1759819247369,41.72092105,230.71,230.64,0.71]
[1759819247370,20.8,230.67,230.64,0.71]
[1759819247596,20.8,230.67,230.6,5.0]
[1759819247597,20.8,230.67,230.65,32.7]
[1759819247784,20.8,230.67,230.66,32.7]
[1759819248089,20.8,230.67,230.6,4.5]
[1759819248090,20.8,230.66,230.6,4.5]
[1759819248297,20.8,230.62,230.6,4.5]
[1759819248601,20.8,230.62,230.61,32.7]
[1759819248799,25.13613736,230.62,230.61,32.7]
[1759819249308,20.8,230.61,230.6,4.5]
[1759819250580,20.8,230.61,230.6,5.21]
[1759819250893,25.13632539,230.61,230.6,5.21]
[1759819251086,25.13632539,230.61,230.6,4.5]
[1759819251285,25.13632539,230.61,230.6,37.2]
[1759819252591,38.16139865,230.61,230.6,37.2]
[1759819254090,38.16139865,230.61,230.57,22.73760331]
[1759819254091,20.8,230.58,230.57,22.73760331]
[1759819254287,23.62908275,230.58,230.57,22.73760331]
[1759819254496,23.62908275,230.58,230.57,55.43760331]
[1759819254812,39.36501329,230.58,230.57,55.43760331]
[1759819255107,43.70190287,230.58,230.57,22.73760331]
[1759819255418,43.70190287,230.58,230.57,55.43760331]
[1759819256191,40.87282012,230.58,230.57,55.43760331]
[1759819256492,43.70298457,230.58,230.57,55.43760331]
[1759819257189,40.99382404,230.58,230.57,22.73760331]
[1759819257386,43.70298457,230.58,230.57,55.43760331]
[1759819257588,30.67621456,230.58,230.57,56.14760331]
[1759819257784,27.84605011,230.58,230.57,56.14760331]
[1759819258610,25.13688958,230.58,230.57,56.14760331]
[1759819258797,27.84605011,230.58,230.57,56.14760331]
[1759819259196,4.33688958,230.58,230.57,56.14760331]
[1759819259816,25.13688958,230.58,230.57,56.14760331]
[1759819260200,25.13688958,230.58,230.57,22.73760331]
[1759819260395,25.13688958,230.58,230.57,55.23760331]
[1759819260791,27.97024467,230.58,230.57,55.23760331]
[1759819260998,31.3894052,230.58,230.57,0.71153073]
[1759819261199,42.23162915,230.58,230.53,32.7]
[1759819261408,23.50916053,230.54,230.47,0.71]
[1759819261594,2.70916053,230.48,230.47,0.71]
[1759819261793,20.8,230.55,230.47,0.71]
[1759819261794,2.83196571,230.54,230.47,28.97]
[1759819262017,2.70916053,230.49,230.48,0.71]
[1759819262215,20.8,230.55,230.48,0.71]
[1759819262391,2.70916053,230.54,230.48,0.71]
[1759819262594,2.70916053,230.56,230.48,5.04861161]
[1759819262816,2.70916053,230.58,230.49,0.71]
[1759819263116,23.50916053,230.58,230.5,32.7]
[1759819263301,2.70916053,230.58,230.5,32.7]
[1759819263513,2.70916053,230.58,230.51,0.71]
[1759819263827,2.70916053,230.55,230.52,32.68]
[1759819264147,2.70916053,230.55,230.53,0.71]
[1759819264331,2.70916053,230.54,230.49,0.71]
[1759819264498,2.70916053,230.52,230.5,33.39]
[1759819264697,2.70916053,230.52,230.5,32.68]
[1759819264698,4.33820658,230.51,230.5,32.68]
[1759819264903,2.70916053,230.54,230.5,33.39]
[1759819265208,2.70916053,230.54,230.51,0.71]
[1759819265412,25.13745988,230.55,230.51,0.71]
[1759819265413,2.70916053,230.52,230.51,0.71]
[1759819265605,2.70916053,230.52,230.51,33.39]
[1759819266015,35.98109466,230.55,230.51,33.39]
[1759819266519,2.70916053,230.52,230.51,32.68]
[1759819267031,4.33820658,230.51,230.49,0.71]
[1759819267210,4.33820658,230.51,230.5,0.71]
[1759819267524,2.70916053,230.52,230.5,33.39]
[1759819267729,2.70916053,230.52,230.51,0.71]
[1759819267927,4.33764205,230.54,230.51,0.71]
[1759819268301,20.8,230.55,230.51,0.71]
[1759819268813,20.8,230.55,230.5,32.68]
[1759819268814,23.50916053,230.55,230.5,5.89]
[1759819269012,4.33688958,230.58,230.5,5.89]
[1759819269222,1.73385603,230.57,230.5,5.89]
[1759819269724,1.73385603,230.58,230.5,10.22839338]
[1759819269912,20.8,230.59,230.5,10.22839338]
[1759819270114,4.33632539,230.61,230.5,5.89]
[1759819270115,22.53385603,230.58,230.5,5.89]
[1759819270514,22.53385603,230.58,230.5,10.22839194]
[1759819270699,22.53385603,230.58,230.51,0.71]
[1759819270700,1.73385603,230.57,230.51,0.71]
[1759819270902,20.8,230.58,230.52,32.68]
[1759819270903,4.33745391,230.55,230.52,32.68]
[1759819271118,6.07130994,230.55,230.53,32.68]
[1759819271514,4.33745391,230.55,230.53,32.68]
[1759819271703,6.07130994,230.55,230.53,32.68]
[1759819272100,22.53385603,230.56,230.54,0.71]
[1759819272531,6.0709337,230.57,230.54,0.71]
[1759819272906,6.07074764,230.58,230.55,0.71]
[1759819273209,6.07074764,230.58,230.53,32.68]
[1759819273538,25.13676493,230.59,230.54,0.71]
[1759819273825,26.87062096,230.59,230.55,0.71]
[1759819274004,6.0703802,230.6,230.56,0.71]
[1759819274203,6.0703802,230.6,230.57,0.71]
[1759819274408,6.0703802,230.6,230.54,33.39]
[1759819274725,16.9116638,230.6,230.54,33.39]
[1759819274918,1.73385603,230.59,230.54,33.39]
[1759819275118,1.73385603,230.59,230.55,0.71]
[1759819275525,22.53385603,230.57,230.55,32.68]
[1759819275827,1.73385603,230.56,230.55,32.68]
[1759819276025,1.73385603,230.56,230.53,32.68]
[1759819276528,1.73385603,230.56,230.53,33.39]
[1759819277032,4.33745391,230.55,230.53,0.71]
[1759819278324,4.33745391,230.55,230.53,32.66]
[1759819280335,15.17977186,230.57,230.53,32.66]
[1759819280510,15.87977186,230.57,230.52,32.66]
[1759819280707,15.87977186,230.57,230.46,0.193]
[1759819280913,1.73385603,230.56,230.52,0.71]
[1759819281416,15.87977186,230.57,230.52,0.71]
[1759819281628,0.7,230.56,230.51,32.66]
[1759819281833,0.7,230.56,230.51,33.37]
[1759819282333,15.17977186,230.57,230.52,0.71]
[1759819282527,15.87977186,230.57,230.52,0.71]
[1759819284016,0.7,230.56,230.51,32.66]
[1759819284227,0.7,230.56,230.52,0.71]
[1759819284228,1.73385603,230.56,230.52,0.71]
[1759819284612,4.33745391,230.55,230.52,0.71]
[1759819285015,4.33726732,230.56,230.52,0.71]
[1759819285238,4.33726732,230.56,230.53,0.71]
[1759819285530,6.07112335,230.56,230.5,0.71]
[1759819285735,6.07112335,230.56,230.5,33.37]
[1759819285937,6.07112335,230.56,230.51,0.71]
[1759819286116,1.73385603,230.54,230.46,0.193]
[1759819286317,0.7,230.53,230.46,0.193]
[1759819286537,0.7,230.53,230.46,0.903]
[1759819286840,4.33801839,230.52,230.47,0.71]
[1759819288117,6.07130994,230.55,230.47,0.71]
[1759819288546,2.43385603,230.54,230.47,0.71]
[1759819289426,1.73385603,230.49,230.46,0.193]
[1759819289753,1.73385603,230.51,230.46,0.903]
[1759819289924,23.23385603,230.52,230.46,0.903]
[1759819290125,5.03820658,230.51,230.46,0.193]
[1759819290333,6.77206261,230.51,230.46,0.193]
[1759819290528,0.7,230.5,230.46,0.193]
[1759819290926,2.43385603,230.5,230.46,0.193]
[1759819291144,0.7,230.5,230.46,0.193]
[1759819292346,4.33858301,230.49,230.46,0.193]
[1759819293146,10.84388514,230.55,230.47,0.7]
[1759819293445,20.8,230.52,230.48,32.64]
[1759819293642,4.33764205,230.54,230.48,32.64]
[1759819293846,6.07149808,230.54,230.49,0.7]
[1759819294029,4.33764205,230.54,230.5,0.7]
[1759819295352,5.00764205,230.54,230.48,33.34]
[1759819295845,1.73385603,230.52,230.46,0.193]
[1759819296146,15.18174719,230.54,230.46,0.193]
[1759819296349,4.33764205,230.54,230.47,0.7]
[1759819296552,0.67,230.53,230.47,0.7]
[1759819297147,15.18174719,230.54,230.47,0.7]
[1759819298760,15.87174719,230.54,230.47,0.7]
[1759819299258,2.84367753,230.53,230.46,0.193]
[1759819299432,0.69,230.52,230.46,0.193]
[1759819300438,20.8,230.5,230.46,0.193]
[1759819300637,0.69,230.49,230.46,32.813]
[1759819300958,4.33895951,230.47,230.46,32.813]
[1759819303254,4.33858301,230.49,230.46,32.813]
[1759819303462,0.69,230.48,230.46,32.813]
[1759819303637,0.69,230.48,230.46,0.193]
[1759819303832,4.33858301,230.49,230.46,0.193]
[1759819304034,0.69,230.48,230.46,0.193]
[1759819304233,0.69,230.47,230.46,0.193]
[1759819304439,5.02858301,230.49,230.46,0.193]
[1759819305161,22.53385603,230.47,230.46,0.193]
[1759819305351,10.87647521,230.46,230.4,23.13016529]
[1759819305681,20.8,230.37,230.22,32.62]
[1759819305840,1.73385603,230.34,230.22,32.62]
[1759819306248,20.8,230.36,230.22,32.62]
[1759819306452,20.8,230.32,230.17,23.72991953]
[1759819306645,20.8,230.2,230.1,0.12967607]
[1759819306844,1.73385603,230.11,230.1,0.12967607]
[1759819307043,20.8,230.13,230.1,0.12967607]
[1759819307248,20.8,230.13,229.9,33.82]
[1759819307249,1.73385603,230.11,229.95,32.62]
[1759819307446,1.73385603,230.11,229.83,13.0534102]
[1759819307447,20.8,230.03,229.83,13.0534102]
[1759819307646,20.8,230.03,229.79,39.4873255]
[1759819307647,1.73385603,229.96,229.84,30.98]
[1759819307860,20.8,230.0,229.77,13.05738721]
[1759819308040,1.73385603,229.96,229.78,32.68]
[1759819308255,1.73385603,229.96,229.7,3.56574472]
[1759819308459,20.8,229.89,229.73,13.05966088]
[1759819308660,6.93542412,229.92,229.7,11.96]
[1759819308661,20.8,229.92,229.7,11.96]
[1759819308869,20.8,229.92,229.55,15.24722281]
[1759819308870,0.69,229.91,229.55,15.24722281]
[1759819309143,20.8,229.77,229.57,10.88992464]
[1759819309341,0.69,229.9,229.54,46.6772717]
[1759819309342,17.66,229.76,229.54,12.8372717]
[1759819309582,20.8,229.81,229.55,0.7]
[1759819309877,4.21947598,229.95,229.56,25.83460014]
[1759819310053,20.8,229.92,229.57,0.7]
[1759819310254,20.8,229.73,229.54,12.8372717]
[1759819310461,26.97,229.72,229.54,12.8372717]
[1759819310661,4.24383156,229.59,229.54,12.8372717]
[1759819310865,0.69,229.58,229.54,12.8372717]
[1759819311041,13.76387324,229.58,229.54,12.8372717]
[1759819311246,0.69,229.58,229.54,12.8372717]
[1759819311475,4.24383156,229.74,229.54,12.8372717]
[1759819311476,0.69,229.63,229.54,12.8372717]
[1759819311681,4.24383156,229.68,229.54,12.8372717]